[Event "Tournoi de MI Clichy 92 2022"]
[Site "Clichy, France"]
[Date "2022.02.25"]
[Round "7.1"]
[White "Benmesbah, Natacha"]
[Black "Soham Das"]
[Result "0-1"]
[TimeControl "1H40 40 moves plus 30 minutes + 30 seconds from move one"]
[WhiteElo "2221"]
[BlackElo "2378"]

1. e4 {[%clk 01:29:25]} {[%emt 00:01:35]} c6 {[%clk 01:23:15]} {[%emt
00:07:45]} 2. d4 {[%clk 01:28:28]} {[%emt 00:01:27]} d5 {[%clk 01:23:38]}
{[%emt 00:00:07]} 3. e5 {[%clk 01:28:54]} {[%emt 00:00:04]} c5 {[%clk
01:24:05]} {[%emt 00:00:03]} 4. dxc5 {[%clk 01:29:21]} {[%emt 00:00:03]} e6
{[%clk 01:24:33]} {[%emt 00:00:02]} 5. Qg4 {[%clk 01:28:31]} {[%emt 00:01:20]}
Nd7 {[%clk 01:03:22]} {[%emt 00:21:41]} 6. Nf3 {[%clk 01:22:04]} {[%emt
00:06:58]} Qc7 {[%clk 00:58:21]} {[%emt 00:05:31]} 7. Bb5 {[%clk 01:12:35]}
{[%emt 00:09:59]} Qxc5 {[%clk 00:51:00]} {[%emt 00:07:50]} 8. Nc3 {[%clk
01:08:58]} {[%emt 00:04:08]} Qb4 {[%clk 00:46:16]} {[%emt 00:05:14]} 9. Nd4
{[%clk 01:05:55]} {[%emt 00:03:33]} a6 {[%clk 00:33:12]} {[%emt 00:13:33]} 10.
a3 {[%clk 01:03:15]} {[%emt 00:03:11]} Qa5 {[%clk 00:32:28]} {[%emt 00:01:14]}
11. Bxd7+ {[%clk 00:55:48]} {[%emt 00:07:57]} Bxd7 {[%clk 00:32:02]} {[%emt
00:00:54]} 12. O-O {[%clk 00:55:59]} {[%emt 00:00:19]} Rc8 {[%clk 00:22:47]}
{[%emt 00:09:45]} 13. Nb3 {[%clk 00:48:11]} {[%emt 00:08:18]} Qc7 {[%clk
00:22:21]} {[%emt 00:00:55]} 14. Be3 {[%clk 00:46:35]} {[%emt 00:02:07]} Qxe5
{[%clk 00:19:09]} {[%emt 00:03:42]} 15. Rfe1 {[%clk 00:45:19]} {[%emt
00:01:46]} Nf6 {[%clk 00:15:11]} {[%emt 00:04:29]} 16. Qf3 {[%clk 00:40:33]}
{[%emt 00:05:16]} Qh5 {[%clk 00:03:16]} {[%emt 00:12:25]} 17. Qg3 {[%clk
00:36:39]} {[%emt 00:04:24]} Qg6 {[%clk 00:03:36]} {[%emt 00:00:10]} 18. Bg5
{[%clk 00:28:55]} {[%emt 00:08:13]} Be7 {[%clk 00:03:25]} {[%emt 00:00:41]} 19.
Rad1 {[%clk 00:29:10]} {[%emt 00:00:15]} Nh5 {[%clk 00:01:36]} {[%emt
00:02:20]} 20. Qe5 {[%clk 00:26:44]} {[%emt 00:02:56]} Bxg5 {[%clk 00:00:39]}
{[%emt 00:01:27]} 21. Rxd5 {[%clk 00:26:33]} {[%emt 00:00:41]} Bc6 {[%clk
00:00:35]} {[%emt 00:00:34]} 22. Qxg5 {[%clk 00:24:06]} {[%emt 00:02:57]} Bxd5
{[%clk 00:00:57]} {[%emt 00:00:08]} 23. Qxd5 {[%clk 00:24:26]} {[%emt
00:00:10]} O-O {[%clk 00:01:18]} {[%emt 00:00:09]} 24. Qxb7 {[%clk 00:24:33]}
{[%emt 00:00:23]} Qxc2 {[%clk 00:01:44]} {[%emt 00:00:03]} 25. Re2 {[%clk
00:23:41]} {[%emt 00:01:22]} Qd3 {[%clk 00:00:49]} {[%emt 00:01:24]} 26. Rd2
{[%clk 00:23:42]} {[%emt 00:00:31]} Qc4 {[%clk 00:01:05]} {[%emt 00:00:14]} 27.
Rd4 {[%clk 00:23:07]} {[%emt 00:01:05]} Qc6 {[%clk 00:01:25]} {[%emt 00:00:09]}
28. Qe7 {[%clk 00:23:09]} {[%emt 00:00:28]} Nf6 {[%clk 00:00:46]} {[%emt
00:01:09]} 29. h4 {[%clk 00:19:44]} {[%emt 00:03:55]} Rb8 {[%clk 00:00:32]}
{[%emt 00:00:45]} 30. Na5 {[%clk 00:17:32]} {[%emt 00:02:42]} Qb6 {[%clk
00:00:46]} {[%emt 00:00:15]} 31. Qb4 {[%clk 00:17:14]} {[%emt 00:00:48]} Qc7
{[%clk 00:01:04]} {[%emt 00:00:11]} 32. Qa4 {[%clk 00:17:07]} {[%emt 00:00:38]}
Rxb2 {[%clk 00:00:36]} {[%emt 00:00:59]} 33. Nc4 {[%clk 00:17:29]} {[%emt
00:00:08]} Rbb8 {[%clk 00:00:41]} {[%emt 00:00:24]} 34. Qxa6 {[%clk 00:17:42]}
{[%emt 00:00:17]} Qc5 {[%clk 00:00:50]} {[%emt 00:00:21]} 35. Rd3 {[%clk
00:12:50]} {[%emt 00:05:22]} Rfd8 {[%clk 00:00:38]} {[%emt 00:00:42]} 36. Nd6
{[%clk 00:12:15]} {[%emt 00:01:05]} Ng4 {[%clk 00:00:32]} {[%emt 00:00:36]} 37.
Nde4 {[%clk 00:11:51]} {[%emt 00:00:54]} Rb1+ {[%clk 00:00:38]} {[%emt
00:00:24]} 38. Nd1 {[%emt 00:00:42]} Rxd1+ {[%clk 00:00:57]} {[%emt 00:00:09]}
0-1

[Event "Tournoi de MI Clichy 92 2022"]
[Site "Clichy, France"]
[Date "2022.02.25"]
[Round "7.4"]
[White "Decuigniere, Tom"]
[Black "Degardin, Sylvain"]
[Result "1-0"]
[TimeControl "1H40 40 moves plus 30 minutes + 30 seconds from move one"]
[WhiteElo "2292"]
[BlackElo "2288"]

1. c4 {[%clk 01:30:57]} {[%emt 00:00:02]} e5 {[%clk 01:26:43]} {[%emt
00:04:17]} 2. g3 {[%clk 01:30:50]} {[%emt 00:00:38]} Nf6 {[%clk 01:26:27]}
{[%emt 00:00:45]} 3. Bg2 {[%clk 01:31:08]} {[%emt 00:00:13]} d5 {[%clk
01:25:17]} {[%emt 00:01:40]} 4. cxd5 {[%clk 01:31:31]} {[%emt 00:00:07]} Nxd5
{[%clk 01:25:40]} {[%emt 00:00:06]} 5. Nc3 {[%clk 01:31:51]} {[%emt 00:00:10]}
Nb6 {[%clk 01:25:44]} {[%emt 00:00:26]} 6. Nf3 {[%clk 01:32:05]} {[%emt
00:00:16]} Nc6 {[%clk 01:26:02]} {[%emt 00:00:12]} 7. O-O {[%clk 01:32:27]}
{[%emt 00:00:09]} Be7 {[%clk 01:26:11]} {[%emt 00:00:20]} 8. a3 {[%clk
01:31:05]} {[%emt 00:01:53]} O-O {[%clk 01:25:12]} {[%emt 00:01:29]} 9. b4
{[%clk 01:31:18]} {[%emt 00:00:16]} Be6 {[%clk 01:20:15]} {[%emt 00:05:27]} 10.
Rb1 {[%clk 01:30:58]} {[%emt 00:00:51]} f6 {[%clk 01:18:16]} {[%emt 00:02:28]}
11. d3 {[%clk 01:30:01]} {[%emt 00:01:26]} a5 {[%clk 01:17:00]} {[%emt
00:01:46]} 12. b5 {[%clk 01:28:32]} {[%emt 00:02:00]} Nd4 {[%clk 01:17:00]}
{[%emt 00:00:29]} 13. Nd2 {[%clk 01:14:46]} {[%emt 00:14:16]} Qc8 {[%clk
01:15:01]} {[%emt 00:02:29]} 14. e3 {[%clk 01:09:26]} {[%emt 00:05:51]} Nf5
{[%clk 01:13:44]} {[%emt 00:01:46]} 15. Qc2 {[%clk 01:09:01]} {[%emt 00:00:56]}
Rd8 {[%clk 01:04:05]} {[%emt 00:10:08]} 16. Nce4 {[%clk 01:00:38]} {[%emt
00:08:54]} Qd7 {[%clk 00:52:04]} {[%emt 00:12:30]} 17. Nb3 {[%clk 00:59:15]}
{[%emt 00:01:53]} Na4 {[%clk 00:44:35]} {[%emt 00:08:00]} 18. d4 {[%clk
00:55:26]} {[%emt 00:04:19]} exd4 {[%clk 00:41:55]} {[%emt 00:03:09]} 19. Nxd4
{[%clk 00:54:23]} {[%emt 00:01:34]} Nxd4 {[%clk 00:41:05]} {[%emt 00:01:20]} 20.
exd4 {[%clk 00:54:48]} {[%emt 00:00:05]} Qxd4 {[%clk 00:36:56]} {[%emt
00:04:38]} 21. Bf4 {[%clk 00:41:54]} {[%emt 00:13:25]} Qc4 {[%clk 00:33:49]}
{[%emt 00:03:37]} 22. Qxc4 {[%clk 00:34:06]} {[%emt 00:08:18]} Bxc4 {[%clk
00:33:55]} {[%emt 00:00:23]} 23. Rfc1 {[%clk 00:34:20]} {[%emt 00:00:16]} Bd3
{[%clk 00:28:57]} {[%emt 00:05:28]} 24. Rb3 {[%clk 00:34:42]} {[%emt 00:00:08]}
Bxe4 {[%clk 00:24:48]} {[%emt 00:04:39]} 25. Bxe4 {[%clk 00:35:04]} {[%emt
00:00:07]} Nc5 {[%clk 00:24:25]} {[%emt 00:00:53]} 26. Re3 {[%clk 00:28:10]}
{[%emt 00:07:24]} Nxe4 {[%clk 00:17:20]} {[%emt 00:07:36]} 27. Rxe4 {[%clk
00:28:34]} {[%emt 00:00:06]} Bxa3 {[%clk 00:16:25]} {[%emt 00:01:26]} 28. Rxc7
{[%clk 00:28:34]} {[%emt 00:00:30]} b6 {[%clk 00:10:24]} {[%emt 00:06:30]} 29.
Rb7 {[%clk 00:23:22]} {[%emt 00:05:41]} Bc5 {[%clk 00:06:52]} {[%emt 00:04:02]}
30. Be3 {[%clk 00:19:56]} {[%emt 00:03:57]} Rdb8 {[%clk 00:05:24]} {[%emt
00:01:58]} 31. Rd7 {[%clk 00:17:59]} {[%emt 00:02:27]} a4 {[%clk 00:01:56]}
{[%emt 00:03:58]} 32. Bxc5 {[%clk 00:17:34]} {[%emt 00:00:55]} bxc5 {[%clk
00:02:16]} {[%emt 00:00:10]} 33. Ree7 {[%clk 00:18:01]} {[%emt 00:00:03]} a3
{[%clk 00:02:25]} {[%emt 00:00:21]} 34. Rxg7+ {[%clk 00:18:26]} {[%emt
00:00:04]} Kh8 {[%clk 00:02:11]} {[%emt 00:00:43]} 35. Rxh7+ {[%clk 00:18:51]}
{[%emt 00:00:06]} Kg8 {[%clk 00:02:37]} {[%emt 00:00:04]} 36. Rdg7+ {[%clk
00:17:50]} {[%emt 00:01:31]} Kf8 {[%clk 00:02:57]} {[%emt 00:00:10]} 37. Ra7
{[%clk 00:18:04]} {[%emt 00:00:16]} Kg8 {[%clk 00:03:00]} {[%emt 00:00:26]} 38.
Rhb7 {[%clk 00:17:16]} {[%emt 00:01:18]} Rxb7 {[%clk 00:00:47]} {[%emt
00:02:43]} 39. Rxa8+ {[%clk 00:17:42]} {[%emt 00:00:05]} Kf7 {[%clk 00:01:01]}
{[%emt 00:00:15]} 40. Rxa3 {[%clk 00:18:04]} {[%emt 00:00:08]} Rxb5 {[%clk
00:01:17]} {[%emt 00:00:14]} 41. Ra6 {[%clk 00:11:40]} {[%emt 00:06:54]} Rb1+
{[%clk 00:23:31]} {[%emt 00:08:15]} 42. Kg2 {[%clk 00:42:05]} {[%emt 00:00:05]}
Rc1 {[%clk 00:21:58]} {[%emt 00:02:04]} 43. h4 {[%clk 00:41:24]} {[%emt
00:01:12]} c4 {[%clk 00:18:09]} {[%emt 00:04:19]} 44. Rc6 {[%clk 00:40:51]}
{[%emt 00:01:02]} c3 {[%clk 00:18:07]} {[%emt 00:00:32]} 45. Kf3 {[%clk
00:35:39]} {[%emt 00:05:42]} c2 {[%clk 00:13:01]} {[%emt 00:05:36]} 46. Kg4
{[%clk 00:34:51]} {[%emt 00:01:17]} Kg6 {[%clk 00:11:26]} {[%emt 00:02:06]} 47.
Kf4 {[%clk 00:34:27]} {[%emt 00:00:54]} 1-0

[ePGN "0.1;DGT LiveChess/2.2.5"]

[Event "Tournoi de MI Clichy 92 2022"]
[Site "Clichy, France"]
[Date "2022.02.26"]
[Round "8.5"]
[White "Soham Das"]
[Black "Degardin, Sylvain"]
[Result "0-1"]
[TimeControl "1H40 40 moves plus 30 minutes + 30 seconds from move one"]
[WhiteElo "2378"]
[BlackElo "2288"]

1. e4 {[%clk 01:24:21]} {[%emt 00:06:38]} c5 {[%clk 01:30:19]} {[%emt
00:00:42]} 2. Nf3 {[%clk 01:24:00]} {[%emt 00:00:52]} d6 {[%clk 01:30:22]}
{[%emt 00:00:26]} 3. d4 {[%clk 01:24:26]} {[%emt 00:00:04]} cxd4 {[%clk
01:30:42]} {[%emt 00:00:10]} 4. Nxd4 {[%clk 01:24:53]} {[%emt 00:00:03]} Nf6
{[%clk 01:30:58]} {[%emt 00:00:14]} 5. Nc3 {[%clk 01:25:20]} {[%emt 00:00:05]}
a6 {[%clk 01:31:00]} {[%emt 00:00:28]} 6. Qf3 {[%clk 01:25:44]} {[%emt
00:00:06]} g6 {[%clk 01:31:01]} {[%emt 00:00:28]} 7. h3 {[%clk 01:23:44]}
{[%emt 00:02:30]} Bg7 {[%clk 01:31:02]} {[%emt 00:00:28]} 8. Be3 {[%clk
01:24:10]} {[%emt 00:00:05]} O-O {[%clk 01:30:36]} {[%emt 00:00:56]} 9. O-O-O
{[%clk 01:21:59]} {[%emt 00:02:41]} Bd7 {[%clk 01:29:55]} {[%emt 00:01:11]} 10.
g4 {[%clk 01:07:16]} {[%emt 00:15:14]} Nc6 {[%clk 01:29:21]} {[%emt 00:01:02]}
11. Qe2 {[%clk 00:58:47]} {[%emt 00:09:00]} Rc8 {[%clk 01:25:31]} {[%emt
00:04:21]} 12. f4 {[%clk 00:46:33]} {[%emt 00:12:44]} Nxd4 {[%clk 01:16:51]}
{[%emt 00:09:10]} 13. Bxd4 {[%clk 00:46:43]} {[%emt 00:00:20]} Qa5 {[%clk
01:06:05]} {[%emt 00:11:15]} 14. e5 {[%clk 00:16:17]} {[%emt 00:30:57]} Nd5
{[%clk 00:58:54]} {[%emt 00:07:40]} 15. Nxd5 {[%clk 00:16:44]} {[%emt
00:00:04]} Qxd5 {[%clk 00:58:48]} {[%emt 00:00:35]} 16. Bg2 {[%clk 00:16:53]}
{[%emt 00:00:21]} Qxa2 {[%clk 00:57:45]} {[%emt 00:01:33]} 17. Bxb7 {[%clk
00:17:17]} {[%emt 00:00:06]} Bb5 {[%clk 00:37:14]} {[%emt 00:21:01]} 18. Qe3
{[%clk 00:08:29]} {[%emt 00:09:18]} dxe5 {[%clk 00:33:35]} {[%emt 00:04:09]} 19.
fxe5 {[%clk 00:08:39]} {[%emt 00:00:20]} Rc7 {[%clk 00:16:28]} {[%emt
00:17:37]} 20. Be4 {[%clk 00:08:53]} {[%emt 00:00:16]} Rfc8 {[%clk 00:15:46]}
{[%emt 00:01:12]} 21. h4 {[%clk 00:07:30]} {[%emt 00:01:53]} Ba4 {[%clk
00:15:16]} {[%emt 00:01:00]} 22. Rh2 {[%clk 00:05:49]} {[%emt 00:02:11]} e6
{[%clk 00:09:16]} {[%emt 00:06:30]} 23. h5 {[%clk 00:04:05]} {[%emt 00:02:14]}
Bf8 {[%clk 00:09:10]} {[%emt 00:00:35]} 24. hxg6 {[%emt 00:02:30]} fxg6 {[%clk
00:08:09]} 25. Rdh1 {[%clk 00:02:45]} {[%emt 00:01:21]} Bxc2 {[%clk 00:01:43]}
{[%emt 00:06:57]} 26. Rxc2 {[%clk 00:00:34]} {[%emt 00:02:42]} Rxc2+ {[%clk
00:01:41]} {[%emt 00:00:32]} 27. Bxc2 {[%clk 00:00:59]} {[%emt 00:00:05]} Qa1+
{[%clk 00:02:06]} {[%emt 00:00:04]} 28. Kd2 {[%clk 00:01:26]} {[%emt 00:00:03]}
Qxh1 {[%clk 00:02:28]} {[%emt 00:00:08]} 29. Qf2 {[%clk 00:00:33]} {[%emt
00:01:23]} Bh6+ {[%clk 00:01:49]} {[%emt 00:01:08]} 0-1

[Event "Tournoi de MI Clichy 92 2022"]
[Site "Clichy, France"]
[Date "2022.02.26"]
[Round "8.4"]
[White "Mekhane, Adam"]
[Black "Droin, Augustin"]
[Result "1/2-1/2"]
[TimeControl "1H40 40 moves plus 30 minutes + 30 seconds from move one"]
[WhiteElo "2316"]
[BlackElo "2365"]

1. e4 {[%clk 01:29:09]} {[%emt 00:01:50]} c5 {[%clk 01:30:56]} {[%emt
00:00:04]} 2. Nf3 {[%clk 01:29:28]} {[%emt 00:00:10]} d6 {[%clk 01:31:23]}
{[%emt 00:00:04]} 3. d4 {[%clk 01:29:46]} {[%emt 00:00:11]} Nf6 {[%clk
01:31:47]} {[%emt 00:00:06]} 4. Nc3 {[%clk 01:29:50]} {[%emt 00:00:26]} cxd4
{[%clk 01:32:14]} {[%emt 00:00:04]} 5. Nxd4 {[%clk 01:30:14]} {[%emt 00:00:04]}
e5 {[%clk 01:32:40]} {[%emt 00:00:05]} 6. Bb5+ {[%emt 00:03:27]} Nbd7 {[%clk
01:32:59]} {[%emt 00:00:10]} 7. Nf5 {[%clk 01:23:39]} {[%emt 00:04:09]} a6
{[%clk 01:33:25]} {[%emt 00:00:04]} 8. Bxd7+ {[%clk 01:15:02]} {[%emt
00:09:07]} Qxd7 {[%clk 01:33:43]} {[%emt 00:00:13]} 9. Ne3 {[%clk 01:13:39]}
{[%emt 00:01:52]} Qc6 {[%clk 01:34:05]} {[%emt 00:00:08]} 10. Qd3 {[%clk
01:08:02]} {[%emt 00:06:07]} Be7 {[%clk 01:34:24]} {[%emt 00:00:11]} 11. Ncd5
{[%clk 01:04:29]} {[%emt 00:04:04]} Nxd5 {[%clk 01:34:46]} {[%emt 00:00:08]} 12.
Nxd5 {[%clk 01:04:32]} {[%emt 00:00:27]} Be6 {[%clk 01:35:12]} {[%emt
00:00:04]} 13. O-O {[%clk 00:55:27]} {[%emt 00:09:35]} Rc8 {[%clk 01:29:44]}
{[%emt 00:05:58]} 14. c3 {[%clk 00:46:18]} {[%emt 00:09:40]} Bxd5 {[%clk
01:26:36]} {[%emt 00:03:37]} 15. exd5 {[%clk 00:46:43]} {[%emt 00:00:05]} Qc4
{[%clk 01:27:03]} {[%emt 00:00:03]} 16. Qxc4 {[%clk 00:40:00]} {[%emt
00:07:12]} Rxc4 {[%clk 01:27:29]} {[%emt 00:00:04]} 17. Be3 {[%clk 00:38:20]}
{[%emt 00:02:10]} Kd7 {[%clk 01:18:41]} {[%emt 00:09:18]} 18. Rfc1 {[%clk
00:35:10]} {[%emt 00:03:39]} Rhc8 {[%clk 01:15:30]} {[%emt 00:03:41]} 19. a4
{[%clk 00:29:56]} {[%emt 00:05:45]} f5 {[%clk 01:08:08]} {[%emt 00:07:53]} 20.
f3 {[%clk 00:28:36]} {[%emt 00:01:49]} g5 {[%clk 01:08:27]} {[%emt 00:00:11]}
21. Kf1 {[%clk 00:26:24]} {[%emt 00:02:41]} g4 {[%clk 01:05:57]} {[%emt
00:03:00]} 22. Rc2 {[%clk 00:21:42]} {[%emt 00:05:12]} gxf3 {[%clk 01:01:32]}
{[%emt 00:04:55]} 23. gxf3 {[%clk 00:22:11]} {[%emt 00:00:01]} Rh4 {[%clk
01:01:22]} {[%emt 00:00:40]} 24. b3 {[%clk 00:18:21]} {[%emt 00:04:20]} Bf6
{[%clk 01:00:30]} {[%emt 00:01:22]} 25. Re1 {[%clk 00:15:23]} {[%emt 00:03:27]}
b5 {[%clk 00:54:32]} {[%emt 00:06:28]} 26. axb5 {[%clk 00:15:06]} {[%emt
00:00:47]} axb5 {[%clk 00:54:58]} {[%emt 00:00:04]} 27. Ra1 {[%clk 00:14:28]}
{[%emt 00:01:07]} Rc7 {[%clk 00:53:52]} {[%emt 00:01:36]} 28. Ra6 {[%clk
00:09:13]} {[%emt 00:05:46]} e4 {[%clk 00:44:23]} {[%emt 00:09:58]} 29. c4
{[%clk 00:08:32]} {[%emt 00:01:11]} bxc4 {[%clk 00:38:53]} {[%emt 00:06:00]} 30.
bxc4 {[%clk 00:08:58]} {[%emt 00:00:04]} Be5 {[%clk 00:36:54]} {[%emt
00:02:28]} 31. Ra8 {[%clk 00:03:41]} {[%emt 00:05:47]} Rb7 {[%clk 00:30:31]}
{[%emt 00:06:54]} 32. fxe4 {[%clk 00:00:38]} {[%emt 00:03:33]} Rb1+ {[%clk
00:25:56]} {[%emt 00:05:05]} 33. Rc1 {[%clk 00:00:58]} {[%emt 00:00:09]} Rxc1+
{[%clk 00:21:06]} {[%emt 00:05:20]} 34. Bxc1 {[%clk 00:01:27]} Rxh2 {[%clk
00:20:53]} {[%emt 00:00:42]} 35. Ra7+ {[%clk 00:01:56]} {[%emt 00:00:01]} Ke8
{[%clk 00:20:31]} {[%emt 00:00:53]} 36. Be3 {[%clk 00:01:43]} {[%emt 00:00:43]}
f4 {[%clk 00:14:09]} {[%emt 00:06:52]} 37. Ra8+ {[%clk 00:02:09]} {[%emt
00:00:04]} Kf7 {[%clk 00:14:21]} {[%emt 00:00:19]} 38. Bf2 {[%clk 00:01:56]}
{[%emt 00:00:42]} f3 {[%clk 00:12:07]} {[%emt 00:02:44]} 39. Kg1 {[%clk
00:01:51]} {[%emt 00:00:35]} Rh3 {[%clk 00:04:45]} {[%emt 00:07:52]} 40. c5
{[%clk 00:00:35]} {[%emt 00:01:46]} Bh2+ {[%clk 00:02:03]} {[%emt 00:03:12]} 41.
Kf1 {[%clk 00:00:45]} {[%emt 00:00:20]} Be5 {[%emt 00:15:43]} 42. Kg1 {[%clk
00:15:54]} {[%emt 00:00:20]} Bh2+ {[%clk 00:32:16]} {[%emt 00:00:05]} 43. Kf1
{[%clk 00:16:21]} {[%emt 00:00:03]} Be5 {[%clk 00:32:42]} {[%emt 00:00:04]} 44.
Be3 {[%emt 00:08:13]} 1/2-1/2

[Event "Tournoi de MI Clichy 92 2022"]
[Site "Clichy, France"]
[Date "2022.02.26"]
[Round "8.2"]
[White "Onkoud, Abdelaziz"]
[Black "Decuigniere, Tom"]
[Result "0-1"]
[TimeControl "1H40 40 moves plus 30 minutes + 30 seconds from move one"]
[WhiteElo "2317"]
[BlackElo "2292"]

1. Nf3 {[%clk 01:30:56]} {[%emt 00:00:03]} c5 {[%clk 01:30:27]} {[%emt
00:00:34]} 2. c4 {[%clk 01:31:13]} {[%emt 00:00:13]} g6 {[%clk 01:30:45]}
{[%emt 00:00:13]} 3. g3 {[%clk 01:31:07]} {[%emt 00:00:36]} Bg7 {[%clk
01:31:02]} {[%emt 00:00:12]} 4. Bg2 {[%clk 01:31:29]} {[%emt 00:00:08]} Nc6
{[%clk 01:31:16]} {[%emt 00:00:17]} 5. Nc3 {[%clk 01:31:32]} {[%emt 00:00:26]}
d6 {[%clk 01:30:44]} {[%emt 00:01:02]} 6. O-O {[%clk 01:31:29]} {[%emt
00:00:32]} Bf5 {[%clk 01:29:45]} {[%emt 00:01:30]} 7. d3 {[%clk 01:28:45]}
{[%emt 00:03:14]} Qd7 {[%clk 01:29:59]} {[%emt 00:00:16]} 8. Bd2 {[%clk
01:22:44]} {[%emt 00:06:31]} Bh3 {[%clk 01:26:24]} {[%emt 00:04:06]} 9. Rb1
{[%clk 01:20:38]} {[%emt 00:02:35]} Bxg2 {[%clk 01:22:57]} {[%emt 00:03:56]} 10.
Kxg2 {[%clk 01:20:44]} {[%emt 00:00:23]} e6 {[%clk 01:22:34]} {[%emt 00:00:55]}
11. a3 {[%clk 01:20:20]} {[%emt 00:00:54]} Nge7 {[%clk 01:21:02]} {[%emt
00:02:02]} 12. b4 {[%clk 01:20:07]} {[%emt 00:00:43]} O-O {[%clk 01:18:25]}
{[%emt 00:03:08]} 13. Qc1 {[%clk 00:55:56]} {[%emt 00:24:41]} Nf5 {[%clk
01:09:56]} {[%emt 00:08:58]} 14. Ne4 {[%clk 00:49:59]} {[%emt 00:06:25]} b6
{[%clk 01:09:10]} {[%emt 00:01:17]} 15. Bc3 {[%clk 00:46:56]} {[%emt 00:03:33]}
Nfd4 {[%clk 01:02:39]} {[%emt 00:07:03]} 16. Bxd4 {[%clk 00:44:13]} {[%emt
00:03:12]} Nxd4 {[%clk 00:56:35]} {[%emt 00:06:34]} 17. Nxd4 {[%clk 00:43:15]}
{[%emt 00:01:27]} cxd4 {[%clk 00:56:38]} {[%emt 00:00:28]} 18. Qf4 {[%clk
00:34:30]} {[%emt 00:09:13]} d5 {[%clk 00:43:47]} {[%emt 00:13:22]} 19. Nd2
{[%clk 00:28:55]} {[%emt 00:06:05]} Rac8 {[%clk 00:31:39]} {[%emt 00:12:38]} 20.
Rfc1 {[%clk 00:18:25]} {[%emt 00:11:00]} e5 {[%clk 00:21:23]} {[%emt 00:10:46]}
21. Qh4 {[%clk 00:09:59]} {[%emt 00:08:55]} f5 {[%clk 00:20:41]} {[%emt
00:01:13]} 22. cxd5 {[%clk 00:09:54]} {[%emt 00:00:35]} Qxd5+ {[%clk 00:20:41]}
{[%emt 00:00:30]} 23. Kg1 {[%clk 00:10:17]} {[%emt 00:00:07]} Bf6 {[%clk
00:19:54]} {[%emt 00:01:17]} 24. Qh6 {[%clk 00:09:41]} {[%emt 00:01:04]} Rc3
{[%clk 00:18:48]} {[%emt 00:01:37]} 25. Nc4 {[%clk 00:04:41]} {[%emt 00:05:30]}
b5 {[%clk 00:18:15]} {[%emt 00:01:04]} 26. Rxc3 {[%clk 00:04:19]} {[%emt
00:00:51]} dxc3 {[%clk 00:18:41]} {[%emt 00:00:04]} 27. Ne3 {[%clk 00:04:32]}
{[%emt 00:00:16]} Qa2 {[%clk 00:18:24]} {[%emt 00:00:47]} 28. Rc1 {[%clk
00:04:50]} {[%emt 00:00:12]} Qxa3 {[%clk 00:12:58]} {[%emt 00:05:57]} 29. Nd5
{[%clk 00:04:22]} {[%emt 00:00:57]} Bg7 {[%clk 00:08:23]} {[%emt 00:05:05]} 30.
Qg5 {[%clk 00:04:47]} {[%emt 00:00:05]} e4 {[%clk 00:03:45]} {[%emt 00:05:09]}
31. dxe4 {[%clk 00:01:49]} {[%emt 00:03:27]} f4 {[%clk 00:03:38]} {[%emt
00:00:37]} 32. Rf1 {[%clk 00:01:19]} {[%emt 00:01:00]} c2 {[%clk 00:03:01]}
{[%emt 00:01:08]} 33. Ne7+ {[%clk 00:01:18]} {[%emt 00:00:30]} Kf7 {[%clk
00:03:08]} {[%emt 00:00:23]} 34. Qc5 {[%clk 00:01:33]} {[%emt 00:00:15]} Qc3
{[%clk 00:01:58]} {[%emt 00:01:40]} 35. Qxa7 {[%clk 00:02:01]} {[%emt
00:00:03]} c1=Q {[%clk 00:01:44]} {[%emt 00:00:44]} 36. Nd5+ {[%clk 00:01:55]}
{[%emt 00:00:36]} Kg8 {[%clk 00:02:07]} {[%emt 00:00:07]} 37. Nxc3 {[%clk
00:01:46]} {[%emt 00:00:39]} Qxc3 {[%clk 00:02:33]} {[%emt 00:00:04]} 38. Rd1
{[%clk 00:00:47]} {[%emt 00:01:30]} fxg3 {[%clk 00:02:43]} {[%emt 00:00:20]} 39.
hxg3 {[%clk 00:01:08]} {[%emt 00:00:09]} Qxb4 {[%clk 00:02:53]} {[%emt
00:00:20]} 40. Rd7 {[%clk 00:00:59]} {[%emt 00:00:38]} Qc3 {[%clk 00:02:31]}
{[%emt 00:00:52]} 41. Kg2 {[%clk 00:00:58]} {[%emt 00:00:31]} Qe5 {[%clk
00:00:43]} {[%emt 00:02:18]} 42. Qb7 {[%clk 00:29:22]} {[%emt 00:02:07]} g5
{[%clk 00:22:40]} {[%emt 00:08:33]} 43. f3 {[%clk 00:28:21]} {[%emt 00:01:31]}
Qb2 {[%clk 00:19:54]} {[%emt 00:03:16]} 44. Kh3 {[%clk 00:28:02]} {[%emt
00:00:48]} Kh8 {[%clk 00:17:36]} {[%emt 00:02:48]} 45. Rf7 {[%clk 00:20:05]}
{[%emt 00:08:26]} Rg8 {[%clk 00:16:39]} {[%emt 00:01:28]} 46. e3 {[%clk
00:18:52]} {[%emt 00:01:43]} h5 {[%clk 00:14:19]} {[%emt 00:02:51]} 47. Qd7
{[%clk 00:16:34]} {[%emt 00:02:48]} Qb1 {[%emt 00:05:33]} 48. Kg2 {[%emt
00:00:05]} 0-1